bitfinex-derivatives/quotes_ETHF0:USTF0_20210406
["timestamp","ask_amount","ask_price","bid_price","bid_amount"]
[1617668641314,2.90695,2117.7,2117.0,68.1626]
[1617668641716,0.02775269,2117.8,2117.2,2.90695]
[1617668642516,30.0277519,2117.9,2117.2,2.90695]
[1617668642915,0.02775199,2117.8,2117.2,2.90695]
[1617668643117,0.02775199,2117.8,2117.2,3.85905]
[1617668643316,0.02775188,2117.9,2117.2,2.90695]
[1617668643716,2.90695,2117.3,2117.2,2.90695]
[1617668644317,2.90695,2117.3,2117.2,3.84445]
[1617668644516,2.90695,2117.3,2117.2,2.90695]
[1617668645317,0.02776156,2117.9,2117.2,2.90695]
[1617668645718,0.02776156,2117.9,2117.6,2.90695]
[1617668645719,2.90695,2117.7,2117.6,2.90695]
[1617668646217,2.90695,2117.7,2117.0,68.1626]
[1617668646719,0.05552282,2118.1,2117.0,71.4665]
[1617668646720,0.02775955,2118.1,2117.0,71.4665]
[1617668647117,69.38195763,2118.2,2117.0,71.4665]
[1617668647517,0.02775534,2118.3,2117.0,3.3039]
[1617668647818,2.90695,2118.3,2118.2,2.90695]
[1617668648117,2.90695,2118.3,2118.2,4.96125]
[1617668648318,26.603,2118.5,2118.2,4.96125]
[1617668648918,26.603,2118.5,2118.4,65.01]
[1617668656124,13.3507,2118.5,2118.4,65.9623]
[1617668656324,2.90695,2118.7,2118.4,65.9623]
[1617668656824,2.90695,2118.7,2118.4,65.01]
[1617668657625,2.90695,2118.7,2118.4,65.9407]
[1617668657825,2.90695,2118.7,2118.6,2.90695]
[1617668660327,0.02773479,2119.2,2118.6,2.90695]
[1617668660830,0.05546957,2119.3,2118.6,2.90695]
[1617668660831,0.02773298,2119.3,2119.0,56.5211]
[1617668661131,12.90693068,2119.5,2119.0,58.4113]
[1617668661343,0.02773068,2119.5,2119.0,58.4113]
[1617668661538,0.02772765,2119.6,2119.0,58.4113]
[1617668661931,0.02772506,2119.8,2119.5,2.90695]
[1617668662132,0.02772506,2119.8,2119.6,69.7319]
[1617668662532,13.60992485,2119.9,2119.6,69.7319]
[1617668662932,0.02772485,2119.9,2119.6,69.7319]
[1617668663332,1.0,2120.0,2119.6,69.7319]
[1617668663832,1.0,2120.0,2119.9,2.90695]
[1617668664435,1.05553355,2120.0,2119.9,2.90695]
[1617668664733,1.02776635,2120.0,2119.9,2.90695]
[1617668666752,1.05553448,2120.0,2119.9,2.90695]
[1617668666961,1.03573448,2120.0,2119.9,2.90695]
[1617668667436,0.9802,2120.0,2119.9,2.90695]
[1617668667767,1.25790164,2120.0,2118.8,59.7339]
[1617668667948,2.90695,2119.5,2119.3,2.90695]
[1617668668155,4.66635,2119.5,2119.3,2.90695]
[1617668668437,1.7594,2119.5,2119.3,2.90695]
[1617668669237,0.9802,2120.0,2119.3,2.90695]
[1617668669839,2.90695,2119.9,2119.7,2.90695]
[1617668673246,16.90695,2119.9,2119.7,2.90695]
[1617668673848,14.0,2119.9,2119.7,2.90695]
[1617668678457,14.0,2119.9,2119.7,4.72195]
[1617668680057,13.765,2119.9,2119.7,4.72195]
[1617668680259,13.765,2119.9,2119.7,2.90695]
[1617668682160,13.53,2119.9,2119.7,2.90695]
[1617668683063,13.0,2119.8,2119.7,2.90695]
[1617668684879,12.764,2119.8,2119.7,2.90695]
[1617668685075,12.6699,2119.8,2119.7,2.90695]
[1617668685764,11.9733,2119.8,2119.7,2.90695]
[1617668687866,11.9733,2119.8,2119.7,32.90695]
[1617668688266,3.3102,2119.8,2119.7,32.90695]
[1617668688486,12.9429,2119.9,2119.7,32.90695]
[1617668688698,12.9429,2119.9,2119.7,35.35155]
[1617668688699,10.3561,2119.9,2119.7,35.35155]
[1617668688968,10.0271,2119.9,2119.7,35.35155]
[1617668689169,9.3241,2119.9,2119.7,35.35155]
[1617668689569,5.8119,2119.9,2119.7,35.35155]
[1617668689988,4.8647,2119.9,2119.7,35.35155]
[1617668690282,4.6297,2119.9,2119.7,35.35155]
[1617668691669,4.4443,2119.9,2119.7,35.35155]
[1617668691871,1.0591,2119.9,2119.7,35.35155]
[1617668692070,0.2529,2120.0,2119.7,35.35155]
[1617668692270,2.90695,2121.3,2119.7,35.35155]
[1617668692472,2.90695,2121.3,2120.5,60.4308]
[1617668693873,2.90695,2121.3,2120.5,61.382]
[1617668694172,2.90695,2121.3,2121.2,2.90695]
[1617668699484,2.90695,2121.3,2120.5,60.4308]
[1617668699683,2.90695,2121.3,2120.2,0.9356]
[1617668699684,79.90435,2121.3,2120.2,0.9356]
[1617668700085,76.9974,2121.3,2120.9,2.90695]
[1617668700485,106.9974,2121.3,2119.9,64.8883]
[1617668702189,106.9974,2121.3,2120.4,2.90695]
[1617668702490,15.0,2121.2,2120.4,2.90695]
[1617668702690,30.0,2121.1,2120.4,2.90695]
[1617668703489,30.0,2121.1,2119.9,64.8883]
[1617668705590,15.0,2121.2,2119.9,64.8883]
[1617668706091,15.0,2121.2,2121.1,2.90695]
[1617668707792,45.0,2121.2,2120.8,56.3174]
[1617668707994,47.7236,2121.2,2120.8,56.3174]
[1617668708192,2.90695,2120.9,2120.4,2.90695]
[1617668710094,66.1499,2121.1,2120.7,2.90695]
[1617668710496,30.0,2121.1,2120.7,2.90695]
[1617668710695,30.0,2121.1,2120.7,3.86355]
[1617668710896,30.0,2121.1,2120.7,2.90695]
[1617668711498,30.0,2121.1,2120.5,57.8124]
[1617668712107,30.0,2121.1,2120.8,2.90695]
[1617668712511,15.0,2121.2,2120.8,2.90695]
[1617668713899,45.0,2121.2,2120.8,2.90695]
[1617668714202,5.56625,2120.9,2120.8,2.90695]
[1617668715703,2.90695,2120.9,2120.8,2.90695]
[1617668716801,4.87385,2120.9,2120.8,2.90695]
[1617668717901,2.90695,2120.9,2120.8,2.90695]
[1617668720210,5.74865,2120.9,2120.8,2.90695]
[1617668720905,5.74865,2120.9,2119.6,0.9556]
[1617668721203,35.74865,2120.9,2119.6,0.9556]
[1617668721703,35.74865,2120.9,2119.4,66.69]
[1617668722202,2.90695,2120.2,2119.9,2.90695]
[1617668722403,5.29535,2120.2,2119.9,2.90695]
[1617668723002,5.29535,2120.2,2119.4,66.69]
[1617668723003,35.29535,2120.2,2119.4,66.69]
[1617668723203,35.29535,2120.2,2118.4,0.9307]
[1617668723706,63.4296,2120.1,2118.4,65.3012]
[1617668724302,63.4296,2120.1,2119.6,2.90695]
[1617668724803,2.3884,2120.2,2119.6,2.90695]
[1617668725005,30.0,2120.7,2119.6,2.90695]
[1617668726106,30.0,2120.7,2119.6,3.84745]
[1617668726306,30.0,2120.7,2120.1,2.90695]
[1617668726706,30.0,2120.7,2119.5,72.2543]
[1617668726906,32.1406,2120.7,2119.5,72.2543]
[1617668728208,32.1406,2120.7,2120.1,2.90695]
[1617668730311,2.90695,2120.2,2120.1,2.90695]
[1617668731112,4.95745,2120.2,2119.5,72.2543]
[1617668732315,2.0505,2120.2,2119.8,2.90695]
[1617668732514,30.0,2120.7,2119.8,2.90695]
[1617668734315,30.0,2120.7,2120.1,2.90695]
[1617668736418,2.90695,2120.2,2120.1,2.90695]
[1617668737417,13.0587,2120.8,2120.1,2.90695]
[1617668737618,13.0587,2120.8,2120.1,4.81515]
[1617668737818,13.0587,2120.8,2120.5,71.9005]
[1617668738420,13.0587,2120.8,2120.7,2.90695]
[1617668738620,13.0587,2120.8,2120.7,5.61955]
[1617668739825,2.90695,2120.9,2120.7,5.61955]
[1617668742230,12.7803193,2122.0,2120.7,5.61955]
[1617668742530,2.90695,2121.4,2120.7,5.61955]
[1617668742732,14.0883,2121.2,2120.7,5.61955]
[1617668742932,14.0883,2121.2,2120.7,35.61955]
[1617668743632,12.3824,2121.2,2120.7,35.61955]
[1617668743832,0.02760902,2122.7,2121.2,56.6954]
[1617668744132,13.53780725,2122.8,2121.3,33.0269]
[1617668744332,13.455,2122.8,2121.3,33.0269]
[1617668744642,13.455,2122.8,2122.5,5.60755]
[1617668744844,13.455,2122.8,2122.7,67.4403]
[1617668745633,13.4826972,2122.8,2122.7,67.4403]
[1617668746734,0.0276972,2122.8,2122.7,67.4403]
[1617668746935,9.2943972,2122.9,2122.7,30.0]
[1617668747135,2.77248971,2124.3,2122.7,30.0]
[1617668747434,0.88614262,2124.2,2123.2,76.489]
[1617668747636,1.10761672,2124.5,2123.2,76.489]
[1617668748736,1.10761672,2124.5,2122.7,0.9542]
[1617668748938,64.1045,2124.2,2122.1,77.359]
[1617668749135,30.0,2124.1,2122.1,77.359]
[1617668750438,30.0,2124.1,2123.5,2.90695]
[1617668751440,30.0,2124.1,2123.4,56.6198]
[1617668752244,4.0014,2124.5,2123.4,56.6198]
[1617668752245,30.0,2124.4,2123.4,56.6198]
[1617668752445,2.90695,2123.5,2123.4,56.6198]
[1617668756250,30.0,2124.8,2123.4,56.6198]
[1617668756452,30.0,2124.8,2123.8,2.90695]
[1617668756649,13.0,2124.0,2123.8,2.90695]
[1617668759347,13.0,2124.0,2123.8,3.84795]
[1617668760455,12.2883,2124.0,2123.8,3.84795]
[1617668760956,11.5842,2124.0,2123.8,3.84795]
[1617668763158,11.5842,2124.0,2123.8,33.84795]
[1617668765958,9.5695,2124.0,2123.8,95.86555]
[1617668766759,9.5695,2124.0,2123.8,65.86555]
[1617668766959,9.3598,2124.0,2123.8,65.86555]
[1617668768162,9.0967,2124.0,2123.8,65.86555]
[1617668771367,9.061,2124.0,2123.8,65.86555]
[1617668771972,8.2076,2124.0,2123.8,68.34465]
[1617668772469,7.5506,2124.0,2123.8,68.34465]
[1617668772668,7.4106,2124.0,2123.8,6.32705]
[1617668772874,5.8896,2124.0,2123.8,36.32705]
[1617668773169,2.90695,2125.4,2123.8,36.32705]
[1617668773371,12.7659,2126.2,2123.8,36.32705]
[1617668773570,12.7659,2126.2,2124.9,61.7585]
[1617668774673,12.7659,2126.2,2126.1,5.71925]
[1617668775091,12.7659,2126.2,2126.1,81.47325]
[1617668775909,12.7659,2126.2,2126.1,5.71925]
[1617668776974,12.7659,2126.2,2126.1,5.70925]
[1617668777380,2.90695,2126.9,2126.1,5.70925]
[1617668778177,2.90695,2126.9,2126.1,5.69925]
[1617668778576,2.90695,2126.9,2126.8,2.90695]
[1617668778879,13.0199,2127.8,2126.8,2.90695]
[1617668779176,13.0199,2127.8,2127.1,54.8656]
[1617668779779,13.0199,2127.8,2126.8,2.90695]
[1617668779978,13.0199,2127.8,2127.1,58.842]
[1617668780578,13.0199,2127.8,2127.4,2.90695]
[1617668782279,14.0,2127.7,2127.4,2.90695]
[1617668782479,16.2936,2127.7,2126.3,77.5147]
[1617668782680,16.2936,2127.7,2126.7,2.90695]
[1617668783380,16.2936,2127.7,2126.7,2.89665]
[1617668783582,14.0,2127.7,2126.7,2.89665]
[1617668784680,14.0,2127.7,2127.3,2.90695]
[1617668785080,14.0,2127.7,2127.3,55.61235]
[1617668786683,16.60045,2127.7,2127.6,2.90695]
[1617668791987,18.74925,2127.7,2127.6,2.90695]
[1617668793992,16.60045,2127.7,2127.6,2.90695]
[1617668798695,16.60045,2127.7,2126.5,78.4795]
[1617668798995,13.6935,2127.7,2126.5,78.4795]
[1617668799197,43.6935,2127.7,2126.5,78.4795]
[1617668800995,43.6935,2127.7,2126.6,2.90695]
[1617668801598,43.6935,2127.7,2126.5,78.4795]
[1617668801599,45.6935,2127.7,2126.5,78.4795]
[1617668802797,2.90695,2126.6,2126.5,78.4795]
[1617668803005,4.72015,2126.6,2126.4,2.90695]
[1617668803496,34.72015,2126.6,2126.4,2.90695]
[1617668806003,34.72015,2126.6,2125.3,71.3085]
[1617668806903,31.8132,2126.6,2125.7,2.90695]
[1617668807101,30.0,2126.5,2125.7,2.90695]
[1617668808903,2.90695,2125.8,2125.3,71.3085]
[1617668809105,35.60125,2125.8,2123.4,30.0]
[1617668809304,35.60125,2125.8,2124.1,65.73]
[1617668810909,32.6943,2125.8,2125.3,2.90695]
[1617668812213,32.6943,2125.8,2124.1,65.73]
[1617668812814,2.90695,2125.5,2125.2,2.90695]
[1617668813014,13.8317,2126.0,2125.2,2.90695]
[1617668814915,13.8317,2126.0,2125.9,2.90695]
[1617668820823,13.8317,2126.0,2125.9,3.84335]
[1617668822126,13.8317,2126.0,2125.9,2.90695]
[1617668823029,2.90695,2126.9,2125.9,2.90695]
[1617668823232,2.90695,2126.9,2125.9,3.86115]
[1617668823431,2.90695,2126.9,2125.9,2.90695]
[1617668825030,43.8125,2127.4,2126.7,2.90695]
[1617668826033,13.8125,2127.4,2126.7,2.90695]
[1617668827034,2.90695,2126.8,2126.7,2.90695]
[1617668835538,35.03305,2126.8,2125.9,0.9349]
[1617668835739,35.03305,2126.8,2125.8,68.7811]
[1617668837140,32.1261,2126.8,2126.2,2.90695]
[1617668838842,30.0,2127.3,2126.2,2.90695]
[1617668839042,2.90695,2126.5,2126.2,2.90695]
[1617668840744,13.8125,2127.4,2126.2,2.90695]
[1617668841144,13.8125,2127.4,2127.1,2.90695]
[1617668841346,13.8125,2127.4,2127.1,4.93615]
[1617668846955,13.8125,2127.4,2127.1,2.90695]
[1617668847751,13.8125,2127.4,2127.1,4.62435]
[1617668849057,13.8125,2127.4,2127.1,2.90695]
[1617668851455,13.8125,2127.4,2127.1,4.97695]
[1617668852656,13.8125,2127.4,2127.1,2.90695]
[1617668857766,13.7498,2127.4,2127.1,2.90695]
[1617668858469,15.996,2127.4,2127.1,2.90695]
[1617668859167,2.90695,2127.2,2127.1,2.90695]
[1617668859369,15.996,2127.4,2127.1,2.90695]
[1617668859668,15.996,2127.4,2127.1,4.90695]
[1617668860070,13.7498,2127.4,2127.1,4.90695]
[1617668860469,13.7498,2127.4,2127.1,2.90695]
[1617668860971,13.7498,2127.4,2127.1,4.90695]
[1617668863573,13.7498,2127.4,2127.1,2.90695]
[1617668864986,13.7498,2127.4,2127.1,4.71495]
[1617668865173,13.7498,2127.4,2127.2,2.0]
[1617668865373,13.7498,2127.4,2127.2,2.931]
[1617668865976,13.0163,2127.6,2127.2,2.931]
[1617668867373,13.0163,2127.6,2127.5,2.90695]
[1617668867573,11.6103,2127.6,2127.5,2.90695]
[1617668867774,11.6103,2127.6,2127.5,4.90695]
[1617668868073,11.4642,2127.6,2127.5,4.90695]
[1617668868274,13.6935,2127.7,2127.6,63.7897]
[1617668868675,11.8635,2127.7,2127.6,63.7897]
[1617668868876,11.1638,2127.7,2127.6,63.7897]
[1617668869076,11.1638,2127.7,2127.6,65.7897]
[1617668869276,10.0783,2127.7,2127.6,95.7897]
[1617668869477,8.9553,2127.7,2127.6,95.7897]
[1617668870786,8.7203,2127.7,2127.6,95.7897]
[1617668871983,8.0973,2127.7,2127.6,95.7897]
[1617668872183,1.96995,2128.9,2127.6,95.7897]
[1617668872383,0.84695,2128.9,2127.6,97.6168]
[1617668872883,0.46925,2128.9,2127.6,97.6168]
[1617668873383,0.46925,2128.9,2128.8,2.90695]
[1617668877186,13.2441,2129.3,2128.8,2.90695]
[1617668877389,13.2441,2129.3,2129.2,2.90695]
[1617668877686,13.2441,2129.3,2128.2,30.0]
[1617668877687,15.8437,2129.3,2128.2,30.0]
[1617668879493,13.2441,2129.3,2129.0,2.90695]
[1617668880291,13.2441,2129.3,2128.6,59.47635]
[1617668881296,13.2441,2129.3,2128.6,60.41345]
[1617668881497,13.2441,2129.3,2128.8,2.90695]
[1617668883400,16.15105,2129.3,2129.2,2.90695]
[1617668886604,16.15105,2129.3,2128.6,59.47635]
[1617668886803,18.13775,2129.3,2128.6,59.47635]
[1617668887507,18.13775,2129.3,2129.2,2.90695]
[1617668888109,16.15105,2129.3,2129.2,2.90695]
[1617668888807,16.15105,2129.3,2128.6,59.47635]
[1617668889510,16.15105,2129.3,2129.2,2.90695]
[1617668893212,16.15105,2129.3,2129.2,3.85825]
[1617668893913,13.2441,2129.3,2129.2,2.90695]
[1617668894413,13.3803,2130.0,2129.2,2.90695]
[1617668894614,13.3803,2130.0,2129.4,78.2808]
[1617668895515,13.3803,2130.0,2129.9,2.90695]
[1617668895916,13.6317,2130.5,2129.9,2.90695]
[1617668897016,13.6317,2130.5,2129.9,32.90695]
[1617668897217,13.6317,2130.5,2130.4,77.2253]
[1617668897628,2.90695,2130.8,2130.4,110.13225]
[1617668897833,13.2272,2131.4,2130.4,112.33755]
[1617668898320,0.43881784,2131.8,2130.4,113.26235]
[1617668898542,13.1243,2131.9,2130.4,113.26235]
[1617668898543,13.1243,2131.9,2130.5,2.0]
[1617668898820,13.1243,2131.9,2130.6,30.0]
[1617668899620,13.1243,2131.9,2131.7,2.90695]
[1617668899820,13.1243,2131.9,2131.8,62.7247]
[1617668900620,14.073,2131.9,2131.8,62.7247]
[1617668900819,13.1243,2131.9,2131.8,62.7247]
[1617668901720,16.03125,2131.9,2131.8,47.7247]
[1617668902525,16.03125,2131.9,2131.8,77.7247]
[1617668903824,1.97905,2131.9,2131.8,77.7247]
[1617668904025,0.87515303,2133.7,2131.8,77.7247]
[1617668904026,12.6241,2133.2,2131.8,77.7247]
[1617668904225,25.2215,2133.2,2131.8,77.7247]
[1617668904925,25.2215,2133.2,2131.9,2.0]
[1617668905125,25.2215,2133.2,2132.0,32.0187]
[1617668905625,25.2215,2133.2,2132.5,2.90695]
[1617668906225,25.2215,2133.2,2132.0,30.0]
[1617668906426,25.2215,2133.2,2131.8,47.7247]
[1617668906625,55.2215,2133.2,2131.7,0.9477]
[1617668907126,57.2215,2133.2,2131.7,0.9477]
[1617668907728,57.2215,2133.2,2131.9,2.90695]
[1617668908132,57.2215,2133.2,2132.0,64.5091]
[1617668908331,25.2215,2133.2,2132.0,64.5091]
[1617668909630,25.2215,2133.2,2132.3,2.90695]
[1617668909631,26.1665,2133.2,2132.3,2.90695]
[1617668909830,26.1665,2133.2,2132.3,4.63145]
[1617668910632,25.2215,2133.2,2132.3,4.63145]
[1617668910833,25.2215,2133.2,2132.3,5.56135]
[1617668911432,25.2215,2133.2,2132.3,4.63145]
[1617668911632,2.90695,2132.4,2132.3,4.63145]
[1617668912535,2.90695,2132.4,2132.3,5.57345]
[1617668913035,2.90695,2132.4,2132.3,7.57345]
[1617668913339,25.2215,2133.2,2132.3,36.63145]
[1617668913635,25.2215,2133.2,2133.1,2.90695]
[1617668913835,25.2215,2133.2,2133.1,4.93155]
[1617668914241,2.90695,2133.4,2133.1,4.93155]
[1617668914439,1.29015604,2134.7,2133.4,64.6839]
[1617668914743,13.2949,2134.3,2133.4,64.6839]
[1617668915237,13.2949,2134.3,2133.1,34.93155]
[1617668915437,13.2949,2134.3,2133.1,4.93155]
[1617668915638,13.2949,2134.3,2133.6,2.90695]
[1617668917339,13.2949,2134.3,2132.6,30.0]
[1617668917539,15.9341,2134.3,2132.6,30.0]
[1617668917839,45.9341,2134.3,2133.1,2.90695]
[1617668918039,45.9341,2134.3,2131.8,87.0384]
[1617668918442,15.9341,2134.3,2131.8,87.0384]
[1617668918641,59.7073,2134.3,2131.8,87.0384]
[1617668919744,59.7073,2134.3,2132.9,2.90695]
[1617668920443,29.7073,2134.3,2132.9,2.90695]
[1617668921745,2.90695,2133.0,2132.9,2.90695]
[1617668922245,27.0681,2134.3,2132.9,2.90695]
[1617668922445,27.0681,2134.3,2133.0,30.0]
[1617668922646,27.0681,2134.3,2133.0,101.791]
[1617668923746,27.0681,2134.3,2133.8,2.90695]
[1617668923946,27.0681,2134.3,2133.8,5.71285]
[1617668924152,27.0681,2134.3,2133.8,2.8059]
[1617668924948,27.0681,2134.3,2133.8,0.9375]
[1617668925851,2.90695,2133.9,2133.8,0.9375]
[1617668926051,2.90695,2133.9,2133.3,2.90695]
[1617668927656,2.90695,2133.5,2133.3,2.90695]
[1617668928058,5.28755,2133.5,2133.3,2.90695]
[1617668928259,5.28755,2133.5,2132.6,30.0]
[1617668929360,2.90695,2133.5,2132.6,30.0]
[1617668929662,2.90695,2133.5,2133.4,2.90695]
[1617668929859,2.90695,2133.5,2133.4,4.81865]
[1617668930359,2.90695,2133.5,2133.4,1.9117]
[1617668931262,2.90695,2133.5,2132.4,30.0]
[1617668931662,2.90695,2133.5,2133.1,2.90695]
[1617668933266,4.93185,2133.5,2132.4,30.0]
[1617668933465,4.93185,2133.5,2132.3,54.7601]
[1617668933669,4.93185,2133.5,2131.6,30.9326]
[1617668933670,4.93185,2133.5,2132.1,2.90695]
[1617668933671,2.90695,2132.4,2132.1,2.90695]
[1617668933879,5.38785,2132.4,2132.1,2.90695]
[1617668935166,5.38785,2132.4,2130.9,74.9049]
[1617668935366,5.38785,2132.4,2130.4,30.9248]
[1617668935567,5.38785,2132.4,2130.4,30.0]
[1617668935568,113.63565,2132.4,2130.4,30.0]
[1617668935777,110.7287,2132.4,2130.5,2.90695]
[1617668935972,12.975,2132.3,2130.5,2.90695]
[1617668936169,42.975,2132.3,2130.5,2.90695]
[1617668936471,15.53,2132.2,2130.5,2.90695]
[1617668936770,30.0,2132.1,2130.5,2.90695]
[1617668937670,2.90695,2130.6,2130.5,2.90695]
[1617668938076,4.92565,2130.6,2130.5,2.90695]
[1617668939178,2.90695,2130.6,2130.5,2.90695]
[1617668943882,2.90695,2130.6,2129.6,30.0]
[1617668944584,2.90695,2130.6,2129.4,30.0]
[1617668945185,2.35715,2130.6,2129.4,30.0]
[1617668945485,2.35715,2130.6,2129.4,32.0]
[1617668945888,2.0,2131.2,2130.2,2.90695]
[1617668946087,30.0,2131.1,2129.4,30.0]
[1617668946289,2.0,2131.0,2129.4,30.0]
[1617668946488,30.0,2130.9,2129.4,30.0]
[1617668946690,2.0,2131.0,2129.4,30.0]
[1617668947089,2.6732,2131.1,2129.4,30.0]
[1617668947288,13.5271,2131.4,2129.4,30.0]
[1617668947600,13.5271,2131.4,2129.5,2.0]
[1617668947799,13.5271,2131.4,2130.6,2.90695]
[1617668947993,13.5271,2131.4,2130.6,4.75895]
[1617668948895,13.5271,2131.4,2130.6,5.81275175]
[1617668949189,13.5271,2131.4,2130.6,3.96075175]
[1617668949789,2.90695,2130.7,2130.6,3.96075175]
[1617668950790,2.90695,2130.7,2129.5,32.0]
[1617668950791,6.03924825,2130.6,2129.5,30.0]
[1617668951106,6.03924825,2130.6,2129.4,30.0]
[1617668951590,6.03924825,2130.6,2129.4,32.0]
[1617668951889,5.55824825,2130.6,2130.3,2.90695]
[1617668952092,5.55824825,2130.6,2130.3,5.40505]
[1617668952792,5.55824825,2130.6,2130.4,2.0]
[1617668953919,2.90695,2130.5,2130.4,2.0]
[1617668954108,2.90695,2130.5,2130.4,2.9517]
[1617668954307,5.55824825,2130.6,2130.4,2.9517]
[1617668954496,5.55824825,2130.6,2130.4,32.9517]
[1617668954827,2.02764825,2130.6,2130.4,32.9517]
[1617668955024,1.57094825,2130.6,2130.4,32.9517]
[1617668955295,1.14924825,2130.6,2130.4,32.9517]
[1617668955500,0.31064825,2130.6,2130.4,32.9517]
[1617668956897,2.90695,2131.8,2130.4,32.9517]
[1617668957097,13.53,2132.2,2130.4,32.9517]
[1617668957299,13.6802,2132.1,2130.4,32.9517]
[1617668957499,13.6802,2132.1,2130.4,90.2185]
[1617668957899,13.6802,2132.1,2132.0,2.90695]
[1617668959700,13.6802,2132.1,2131.8,0.9385]
[1617668959903,2.90695,2131.9,2130.9,0.9318]
[1617668960100,2.90695,2131.9,2130.8,2.90695]
[1617668961602,32.90695,2131.9,2130.4,57.2668]
[1617668961802,2.0,2131.8,2130.4,57.2668]
[1617668962003,2.0,2131.8,2128.6,30.0]
[1617668962004,30.0,2131.8,2130.6,2.90695]
[1617668962203,30.0,2131.8,2129.5,53.0798]
[1617668962405,2.0,2131.7,2129.5,53.0798]
[1617668962603,32.0,2131.7,2129.5,53.0798]
[1617668965145,32.0,2131.7,2128.7,2.0]
[1617668965325,69.7618,2131.4,2128.7,2.0]
[1617668965528,32.0,2131.3,2128.7,2.0]
[1617668966009,32.0,2131.3,2129.3,2.90695]
[1617668966643,13.6126,2131.2,2129.3,2.90695]
[1617668966826,30.0,2131.1,2129.3,2.90695]
[1617668967031,2.0,2131.0,2129.3,2.90695]
[1617668967219,30.0,2130.9,2129.3,2.90695]
[1617668967512,13.132,2130.7,2128.3,2.0]
[1617668967816,32.0,2130.6,2128.3,2.0]
[1617668968012,2.90695,2129.0,2128.9,2.90695]
[1617668968213,4.99655,2129.0,2128.9,2.90695]
[1617668969219,2.90695,2129.0,2128.9,2.90695]
[1617668970117,2.90695,2129.0,2127.7,54.5763]
[1617668970717,2.90695,2129.0,2127.8,2.0]
[1617668971918,32.4302,2129.1,2128.5,2.90695]
[1617668973219,2.4302,2129.1,2128.5,2.90695]
[1617668973420,12.8533,2129.6,2128.5,2.90695]
[1617668974022,2.90695,2128.6,2128.5,2.90695]
[1617668976024,2.90695,2128.6,2128.1,2.90695]
[1617668977125,30.0,2128.5,2128.1,0.9398]
[1617668977626,30.0,2128.5,2126.7,74.75]
[1617668977943,2.90695,2127.3,2127.2,0.927]
[1617668978163,2.90695,2127.3,2126.9,2.90695]
[1617668978165,5.69015,2127.3,2126.9,2.90695]
[1617668979928,2.90695,2127.0,2126.9,2.90695]
[1617668981131,66.7137,2127.6,2126.9,4.90695]
[1617668981434,13.1186,2128.7,2126.9,2.90695]
[1617668981634,13.1186,2128.7,2127.0,2.0]
[1617668981832,13.1186,2128.7,2127.0,4.1931]
[1617668982033,13.1186,2128.7,2128.1,2.90695]
[1617668982633,13.1186,2128.7,2128.1,3.85625]
[1617668983736,13.1186,2128.7,2128.1,2.90695]
[1617668984136,2.90695,2128.2,2128.1,2.90695]
[1617668984937,2.90695,2128.2,2126.8,69.2351]
[1617668985139,32.90695,2128.2,2125.3,30.0]
[1617668985344,74.8437,2128.1,2125.3,95.1581]
[1617668985538,77.6178,2128.1,2125.3,95.1581]
[1617668985739,107.6178,2128.1,2125.3,95.1581]
[1617668985940,107.6178,2128.1,2125.4,2.0]
[1617668986145,107.6178,2128.1,2127.1,2.90695]
[1617668986344,2.0,2128.0,2127.1,2.90695]
[1617668986546,30.0,2127.9,2127.1,2.90695]
[1617668987441,13.8668,2127.8,2127.1,2.90695]
[1617668987644,13.8668,2127.8,2125.4,2.0]
[1617668987645,2.0,2127.7,2125.4,2.0]
[1617668987943,2.0,2127.7,2125.3,65.1581]
[1617668988161,2.0,2127.7,2126.6,2.90695]
[1617668988553,32.0,2127.7,2125.3,65.1581]
[1617668990146,30.0,2127.7,2126.0,2.90695]
[1617668991850,13.8668,2127.8,2126.0,2.90695]
[1617668992195,13.8668,2127.8,2126.6,5.25165]
[1617668994150,13.8668,2127.8,2127.4,2.90695]
[1617668994752,13.8668,2127.8,2125.9,2.0]
[1617668995451,13.8668,2127.8,2125.4,2.9368]
[1617668996251,13.8668,2127.8,2126.9,2.90695]
[1617668998056,2.90695,2127.0,2126.9,2.90695]
[1617668999654,13.8668,2127.8,2126.9,2.90695]
[1617668999854,13.8668,2127.8,2126.9,4.88055]
[1617669000153,13.8668,2127.8,2127.7,2.90695]
[1617669000355,11.0768,2127.8,2127.7,5.64535]
[1617669000677,11.0768,2127.8,2127.7,65.32725]
[1617669001084,10.761,2127.8,2127.7,5.64535]
[1617669001273,8.8834,2127.8,2127.7,5.64535]
[1617669001594,8.8834,2127.8,2127.7,2.90695]
[1617669001595,6.5889,2127.8,2127.7,2.90695]
[1617669001755,13.3573,2128.6,2127.7,2.90695]
[1617669002273,13.3573,2128.6,2128.2,2.90695]
[1617669002858,13.3573,2128.6,2127.5,61.4845]
[1617669003057,13.3573,2128.6,2126.7,0.9462]
[1617669003257,13.3573,2128.6,2126.4,2.0]
[1617669004258,13.3573,2128.6,2128.1,2.90695]
[1617669004661,7.81325,2127.8,2127.5,59.3305]
[1617669004862,7.81325,2127.8,2127.4,56.0498]